bitfinex/quotes_SOLUSD_20250417
["timestamp","ask_amount","ask_price","bid_price","bid_amount"]
[1744864706138,82.8,130.05,130.02,8.00306527]
[1744864706835,90.48945978,130.05,130.02,8.00306527]
[1744864707213,90.48945978,130.05,130.01,8.00306527]
[1744864707628,90.48945978,130.05,130.02,8.00306527]
[1744864708633,90.48945978,130.05,130.01,8.00306527]
[1744864710223,18.64964886,130.02,129.96,7.69453314]
[1744864710438,90.5466,130.04,130.01,8.00306527]
[1744864712442,90.5466,130.04,129.99,33.69242594]
[1744864712739,26.65271413,130.02,129.97,34.00306527]
[1744864713338,26.65271413,130.02,129.98,8.00306527]
[1744864713531,18.64964886,130.02,129.98,8.00306527]
[1744864713838,26.34083882,130.02,129.98,8.00306527]
[1744864714229,18.64964886,130.02,129.99,8.00306527]
[1744864716017,90.49063879,130.03,130.0,8.00306527]
[1744864716216,82.8,130.02,130.0,8.00306527]
[1744864716741,82.8,130.02,130.01,8.00306527]
[1744864717039,82.8,130.02,130.01,4.17048586]
[1744864717935,90.5466,130.04,130.01,4.17048586]
[1744864718236,82.8,130.04,130.02,8.00306527]
[1744864720432,82.8,130.04,130.01,15.69461643]
[1744864720623,82.8,130.04,130.02,8.00306527]
[1744864720929,0.01,130.07,130.03,8.00306527]
[1744864721134,0.01,130.07,130.06,8.00306527]
[1744864722606,0.01,130.07,130.05,15.69198343]
[1744864724734,8.01306527,130.07,130.03,8.00306527]
[1744864724920,8.00306527,130.06,130.02,8.00306527]
[1744864727341,8.00306527,130.06,130.02,15.69416333]
[1744864728022,15.70133307,130.07,130.02,15.69416333]
[1744864728218,34.35098193,130.07,130.02,15.69416333]
[1744864728838,26.33848844,130.06,130.02,8.00306527]
[1744864729034,117.14155371,130.06,130.01,15.69458246]
[1744864729738,109.13848844,130.06,130.01,15.69458246]
[1744864729914,101.44964886,130.06,130.02,8.00306527]
[1744864730938,101.44964886,130.06,130.03,8.00306527]
[1744864731552,117.14151501,130.06,130.01,7.69151719]
[1744864731847,117.14151501,130.06,130.01,15.69458246]
[1744864732235,109.13844974,130.06,130.02,8.00306527]
[1744864733244,117.23754974,130.06,130.02,8.00306527]
[1744864734845,82.8,130.05,130.02,8.00306527]
[1744864738047,82.8,130.05,130.01,15.69458246]
[1744864740750,82.8,130.05,130.04,8.00306527]
[1744864740945,15.27,130.07,130.04,8.00306527]
[1744864741153,15.27,130.07,130.06,8.00306527]
[1744864741829,15.27,130.07,130.05,8.00306527]
[1744864742528,15.27,130.07,130.04,8.00306527]
[1744864743243,15.27,130.07,130.03,15.69349112]
[1744864743450,98.07,130.07,130.03,15.69349112]
[1744864743747,98.07,130.07,130.04,8.00306527]
[1744864746531,82.8,130.06,130.04,8.00306527]
[1744864751558,82.8,130.06,130.04,15.69299034]
[1744864753762,82.8,130.06,130.05,8.00306527]
[1744864758367,15.27,130.07,130.05,8.00306527]
[1744864760367,0.01,130.07,130.05,8.00306527]
[1744864761176,0.01,130.07,130.05,15.69240445]
[1744864761842,0.01,130.07,130.01,19.22929005]
[1744864762070,0.01,130.07,130.03,8.00306527]
[1744864764072,82.81,130.07,130.03,8.00306527]
[1744864764447,82.81,130.07,130.03,15.69350826]
[1744864766082,82.81,130.07,130.06,8.00306527]
[1744864768176,0.01,130.07,130.06,15.6918243]
[1744864771261,0.01,130.07,130.06,41.6918243]
[1744864771659,0.03,130.08,130.07,1.5982]
[1744864771861,0.03,130.08,130.07,41.61352635]
[1744864772779,0.03,130.08,130.07,49.30169425]
[1744864779593,0.03,130.08,130.07,49.58601739]
[1744864780161,0.063,130.09,130.07,49.58601739]
[1744864780461,0.063,130.09,130.08,66.01532635]
[1744864782497,0.063,130.09,130.08,73.70290322]
[1744864783186,0.063,130.09,130.08,73.98722636]
[1744864785435,1e-08,130.09,130.08,73.98722636]
[1744864788513,1e-08,130.09,130.08,73.70290322]
[1744864790111,1e-08,130.09,130.08,73.98722636]
[1744864791917,1e-08,130.09,130.08,47.98722636]
[1744864798735,1e-08,130.09,130.08,47.70290322]
[1744864800116,1e-08,130.09,130.08,47.98722636]
[1744864809432,0.063,130.11,130.1,26.0]
[1744864809642,1e-08,130.11,130.1,34.28738841]
[1744864809932,0.03,130.12,130.1,34.28738841]
[1744864810237,0.03,130.12,130.11,8.00306527]
[1744864810437,1e-08,130.12,130.11,8.28738841]
[1744864811033,1e-08,130.12,130.11,15.97319272]
[1744864813241,1e-08,130.12,130.11,7.68580431]
[1744864813542,1e-08,130.12,130.08,7.68752241]
[1744864813838,1e-08,130.12,130.05,34.46192608]
[1744864813839,8.00306527,130.11,130.06,7.68855813]
[1744864814020,90.80306527,130.11,130.06,8.00306527]
[1744864814645,82.8,130.11,130.07,8.00306527]
[1744864815141,90.48585541,130.11,130.07,8.00306527]
[1744864816540,82.8,130.1,130.07,8.00306527]
[1744864816741,6.1904,130.09,130.06,8.00306527]
[1744864818922,6.1904,130.09,130.07,8.00306527]
[1744864821257,6.1904,130.09,130.06,8.00306527]
[1744864822150,6.1904,130.09,130.05,33.68923688]
[1744864822343,6.1904,130.09,130.06,8.00306527]
[1744864826144,6.1904,130.09,130.05,26.0]
[1744864826349,15.42911451,130.09,130.05,34.00306527]
[1744864826655,82.8,130.08,130.05,26.0]
[1744864827556,82.8,130.08,130.06,8.00306527]
[1744864829556,82.8,130.08,130.07,8.00306527]
[1744864831531,82.8,130.1,130.07,8.00306527]
[1744864832038,82.8,130.1,130.08,8.00306527]
[1744864833959,90.48640145,130.1,130.07,8.00306527]
[1744864834334,82.8,130.1,130.07,8.00306527]
[1744864835142,82.8,130.1,130.07,15.69112903]
[1744864835762,82.8,130.1,130.08,8.00306527]
[1744864836962,82.8,130.1,130.07,15.69112903]
[1744864837460,82.8,130.1,130.07,8.00306527]
[1744864837663,90.48641737,130.1,130.07,8.00306527]
[1744864838059,82.8,130.1,130.07,8.00306527]
[1744864845067,82.8,130.1,130.07,15.69121837]
[1744864845381,1e-08,130.12,130.09,8.00306527]
[1744864845557,1e-08,130.12,130.11,8.00306527]
[1744864846571,1e-08,130.12,130.11,6.50306527]
[1744864846949,1e-08,130.12,130.11,14.18886958]
[1744864852985,1e-08,130.12,130.11,40.18886958]
[1744864867089,0.03,130.15,130.14,26.0]
[1744864867295,0.03,130.15,130.14,34.00306527]
[1744864868371,0.03,130.15,130.14,41.68709785]
[1744864872699,0.03,130.15,130.09,1.5654]
[1744864873000,0.03,130.15,130.13,8.00306527]
[1744864874694,0.03,130.15,130.14,8.00306527]
[1744864876682,0.03,130.15,130.14,15.68709785]
[1744864880211,0.03,130.15,130.14,47.69935893]
[1744864881212,0.03,130.15,130.14,7.68403258]
[1744864881382,0.03,130.15,130.14,47.69935893]
[1744864887324,0.03,130.18,130.17,26.0]
[1744864887498,0.03,130.18,130.17,34.00306527]
[1744864889409,0.03,130.18,130.17,41.68532692]
[1744864897830,0.03,130.18,130.17,41.96965006]
[1744864898739,0.03,130.2,130.17,61.1753042]
[1744864898951,0.03,130.2,130.19,8.00306527]
[1744864899832,0.03,130.2,130.19,40.29964949]
[1744864900549,1e-08,130.2,130.19,59.09145992]
[1744864900741,0.03,130.21,130.2,33.96481469]
[1744864901038,0.03,130.21,130.2,73.98014104]
[1744864903155,0.03,130.23,130.22,26.0]
[1744864903352,0.03,130.23,130.22,34.28738841]
[1744864903848,0.03,130.23,130.22,34.00306527]
[1744864905256,0.03,130.23,130.22,8.00306527]
[1744864905577,0.03,130.23,130.2,8.00306527]
[1744864905747,0.03,130.23,130.17,7.68226165]
[1744864905933,82.83,130.23,130.19,8.00306527]
[1744864906534,90.50882372,130.23,130.19,8.00306527]
[1744864907532,90.50882372,130.23,130.2,8.00306527]
[1744864907751,82.83,130.23,130.18,7.68166435]
[1744864907958,82.83,130.23,130.19,8.00306527]
[1744864908265,82.83,130.23,130.2,8.00306527]
[1744864912434,82.83,130.23,130.22,8.00306527]
[1744864912834,82.83,130.23,130.22,15.6823772]
[1744864915162,0.03,130.23,130.22,15.6823772]
[1744864916066,0.03,130.23,130.22,8.00306527]
[1744864917469,0.03,130.23,130.22,15.6823772]
[1744864921148,0.03,130.24,130.22,15.6823772]
[1744864921356,0.03,130.24,130.23,34.00306527]
[1744864923275,0.03,130.24,130.23,41.68178753]
[1744864926746,0.03,130.24,130.23,8.00306527]
[1744864927072,0.03,130.24,130.22,8.00306527]
[1744864927261,0.03,130.24,130.21,8.00306527]
[1744864927463,6.2502,130.24,130.21,8.00306527]
[1744864927661,6.2502,130.24,130.19,26.0]
[1744864927857,82.8,130.23,130.2,8.00306527]
[1744864928088,90.80306527,130.23,130.18,8.00306527]
[1744864928663,7.67931193,130.22,130.18,8.00306527]
[1744864928862,7.67931193,130.22,130.18,34.00306527]
[1744864929063,8.00306527,130.2,130.12,26.95597751]
[1744864929279,82.8,130.19,130.17,8.00306527]
[1744864929508,82.8,130.19,130.18,8.00306527]
[1744864929955,1.6616,130.21,130.18,8.00306527]
[1744864930153,82.8,130.22,130.2,8.00306527]
[1744864932787,90.6994,130.24,130.21,8.00306527]
[1744864932987,90.6994,130.24,130.22,8.00306527]
[1744864933200,90.6994,130.24,130.21,8.00306527]
[1744864935983,82.83,130.24,130.21,8.00306527]
[1744864937184,82.83,130.24,130.22,8.00306527]
[1744864937785,90.5084389,130.24,130.18,7.68167153]
[1744864937989,90.5084389,130.24,130.21,8.00306527]
[1744864938187,82.83,130.24,130.21,8.00306527]
[1744864939495,90.5081527,130.24,130.21,8.00306527]
[1744864939988,82.83,130.24,130.2,8.00306527]
[1744864940490,90.50815758,130.24,130.2,8.00306527]
[1744864941091,82.83,130.24,130.21,8.00306527]
[1744864944188,90.50821084,130.24,130.21,8.00306527]
[1744864945290,82.83,130.24,130.21,8.00306527]
[1744864948990,82.83,130.24,130.22,8.00306527]
[1744864949188,82.83,130.24,130.23,8.00306527]
[1744864951595,0.03,130.24,130.23,15.68178753]
[1744864951893,0.03,130.24,130.23,41.68178753]
[1744864961903,0.03,130.24,130.23,33.67872226]
[1744864962101,0.03,130.24,130.23,41.68178753]
[1744864973996,0.03,130.27,130.23,60.87859318]
[1744864974211,0.03,130.27,130.26,8.00306527]
[1744864974991,0.03,130.27,130.26,15.68001905]
[1744864981123,0.03,130.27,130.26,73.69228013]
[1744864982203,0.03,130.27,130.26,41.68001905]
[1744864986422,0.03,130.27,130.26,73.69228013]
[1744864987299,0.03,130.27,130.26,41.68001905]
[1744864989603,0.03,130.27,130.26,73.69228013]
[1744864994560,47.53,130.27,130.26,73.69228013]
[1744864994750,47.53,130.27,130.26,41.68001905]
[1744864994918,0.03,130.29,130.26,66.88466459]
[1744864995118,0.03,130.29,130.28,34.00306527]
[1744864996254,0.03,130.29,130.28,41.67884052]
[1744865003041,0.03,130.29,130.28,33.67577525]
[1744865003236,0.03,130.29,130.28,15.67884052]
[1744865003643,0.03,130.29,130.28,41.67884052]
[1744865005332,0.03,130.3,130.28,41.96316366]
[1744865005559,0.03,130.3,130.29,8.00306527]
[1744865007351,0.03,130.3,130.29,15.67825139]
[1744865009860,0.03,130.3,130.29,7.67518612]
[1744865010067,0.03,130.3,130.29,15.67825139]
[1744865028276,1e-08,130.3,130.29,15.67825139]
[1744865030352,1e-08,130.3,130.29,7.67518612]
[1744865030762,1e-08,130.3,130.29,15.67825139]
[1744865054704,1e-08,130.3,130.29,7.67518612]
[1744865054999,1e-08,130.3,130.29,15.67825139]
[1744865058513,1e-08,130.3,130.29,15.96257453]
[1744865059409,1e-08,130.3,130.29,17.60067453]
[1744865063396,1e-08,130.3,130.29,15.96257453]
[1744865063598,1e-08,130.3,130.29,15.67825139]
[1744865066812,1e-08,130.3,130.29,41.67825139]
[1744865067412,1e-08,130.3,130.29,33.67518612]
[1744865067616,1e-08,130.3,130.29,41.67825139]
[1744865069404,1e-08,130.3,130.29,33.67518612]
[1744865069727,1e-08,130.3,130.28,30.89862759]
[1744865070097,1e-08,130.3,130.29,8.00306527]
[1744865070632,1e-08,130.3,130.29,15.67825139]
[1744865073906,1e-08,130.3,130.29,7.67518612]
[1744865074107,1e-08,130.3,130.29,15.67825139]
[1744865075946,1e-08,130.3,130.29,7.67518612]
[1744865076169,1e-08,130.3,130.28,26.0]
[1744865077799,1e-08,130.3,130.28,33.67570294]
[1744865078002,1e-08,130.3,130.28,41.67876821]
[1744865082345,1e-08,130.3,130.28,26.0]
[1744865082744,1e-08,130.3,130.28,33.67575196]
[1744865084262,1e-08,130.3,130.28,41.67881723]
[1744865087541,1e-08,130.3,130.28,34.00306527]
[1744865090428,1e-08,130.3,130.28,41.67874711]
[1744865090852,1e-08,130.3,130.29,8.00306527]
[1744865098357,1e-08,130.3,130.29,15.67825139]
[1744865100862,1e-08,130.3,130.28,15.67858426]
[1744865104036,1e-08,130.3,130.29,8.00306527]
[1744865106366,1e-08,130.3,130.29,15.67825139]
[1744865112059,1e-08,130.3,130.28,15.67867183]
[1744865115572,1e-08,130.3,130.29,8.00306527]
[1744865118270,1e-08,130.3,130.29,15.67825139]
[1744865129803,1e-08,130.3,130.29,15.96257453]
[1744865131494,1e-08,130.3,130.29,41.96257453]
[1744865131797,1e-08,130.3,130.29,15.96257453]
[1744865133401,1e-08,130.3,130.29,7.67518612]
[1744865133699,1e-08,130.3,130.29,41.67825139]
[1744865140105,1e-08,130.3,130.29,41.96257453]
[1744865147299,1e-08,130.3,130.29,57.16257453]
[1744865148206,1e-08,130.3,130.29,31.16257453]
[1744865154720,0.03,130.33,130.32,26.0]
[1744865154902,0.03,130.33,130.32,34.00306527]
[1744865156024,0.03,130.33,130.32,41.67648454]
[1744865162236,0.03,130.33,130.32,33.67341927]
[1744865162439,0.03,130.33,130.32,41.67648454]
[1744865164939,8.03306527,130.33,130.28,1.6185]
[1744865165139,8.00306527,130.32,130.28,1.6185]
[1744865165843,8.00306527,130.32,130.28,9.62156527]
[1744865166135,8.00306527,130.32,130.28,17.29713325]
[1744865166439,0.03,130.33,130.28,17.29713325]
[1744865166739,0.03,130.33,130.32,8.00306527]
[1744865168025,0.03,130.33,130.32,15.67648454]
[1744865168645,1e-08,130.33,130.32,47.97306876]
[1744865169840,1e-08,130.33,130.32,48.11523033]
[1744865170625,1.6709281,130.37,130.36,0.28432314]
[1744865170828,1.6709281,130.37,130.36,8.28738841]
[1744865171149,1.6709281,130.37,130.36,8.00306527]
[1744865172271,1.6709281,130.37,130.36,15.67413001]
[1744865174258,1.6709281,130.37,130.36,41.67413001]
[1744865175754,0.03,130.44,130.39,26.0]
[1744865175935,0.03,130.44,130.41,8.00306527]
[1744865176465,0.03,130.44,130.4,15.67143299]
[1744865176651,0.03,130.44,130.41,8.00306527]
[1744865176960,0.03,130.44,130.42,8.00306527]
[1744865178655,0.03,130.44,130.42,15.67038012]
[1744865180341,0.03,130.44,130.42,8.00306527]
[1744865181576,0.03,130.44,130.41,8.00306527]
[1744865182881,0.03,130.44,130.42,7.66753565]
[1744865184570,0.03,130.44,130.42,8.00306527]
[1744865184759,0.03,130.44,130.41,8.00306527]
[1744865185378,0.03,130.44,130.42,8.00306527]
[1744865185685,0.03,130.44,130.42,15.67058999]
[1744865186654,8.03306527,130.44,130.4,8.00306527]
[1744865186979,8.00306527,130.43,130.39,34.00306527]
[1744865187189,90.83306527,130.44,130.39,34.00306527]
[1744865189490,90.83306527,130.44,130.39,41.67194324]
[1744865190190,82.83,130.44,130.4,15.67159909]
[1744865193488,90.83306527,130.44,130.4,15.67159909]
[1744865195087,82.83,130.44,130.4,15.67159909]
[1744865199233,82.83,130.44,130.43,8.00306527]
[1744865199397,0.03,130.44,130.43,8.00306527]
[1744865199796,0.03,130.44,130.42,34.00306527]
[1744865200013,0.03,130.44,130.42,41.67047045]
[1744865200313,0.03,130.44,130.42,33.66740518]
[1744865200993,0.03,130.44,130.42,41.67047045]
[1744865204101,0.03,130.44,130.43,8.00306527]
[1744865205005,0.03,130.44,130.43,15.67001305]
[1744865213511,0.03,130.47,130.46,26.0]
[1744865213686,0.03,130.47,130.46,34.00306527]
[1744865214087,0.03,130.47,130.46,41.66825]
[1744865221221,0.03,130.5,130.47,0.28432314]
[1744865221397,0.03,130.5,130.49,8.00306527]
[1744865222301,0.03,130.5,130.49,34.00306527]
[1744865223211,0.03,130.5,130.49,41.66648775]
[1744865229117,0.03,130.5,130.49,33.66342248]
[1744865229319,0.03,130.5,130.49,41.66648775]
[1744865230320,0.03,130.5,130.49,34.00306527]
[1744865230497,0.03,130.5,130.49,26.0]
[1744865230699,0.03,130.5,130.49,34.00306527]
[1744865231216,0.03,130.5,130.49,26.0]
[1744865231800,0.03,130.5,130.48,8.00306527]
[1744865232101,0.03,130.5,130.49,8.00306527]
[1744865233044,0.03,130.5,130.49,15.66648775]
[1744865234320,1e-08,130.5,130.49,47.96307197]
[1744865234849,0.03,130.53,130.52,26.0]
[1744865235021,0.03,130.53,130.52,34.00306527]
[1744865237047,0.03,130.53,130.52,41.66472631]
[1744865237343,0.03,130.53,130.52,33.66166104]
[1744865237513,0.03,130.53,130.52,41.66472631]
[1744865240026,0.03,130.53,130.51,8.00306527]
[1744865240432,0.03,130.53,130.52,8.00306527]
[1744865240751,0.03,130.53,130.51,8.00306527]
[1744865242458,0.03,130.53,130.5,34.00306527]
[1744865242762,0.03,130.53,130.5,41.66582078]
[1744865242943,0.03,130.53,130.51,8.00306527]
[1744865244264,0.03,130.53,130.51,15.66522365]
[1744865244470,0.03,130.53,130.52,8.00306527]
[1744865248573,0.03,130.53,130.52,15.66472631]
[1744865251546,0.03,130.53,130.52,15.94904945]
[1744865251746,0.03,130.53,130.52,15.66472631]
[1744865255287,0.03,130.53,130.51,7.66211101]
[1744865255582,0.03,130.53,130.51,15.66517628]
[1744865255792,0.03,130.53,130.51,15.56517628]
[1744865256871,0.03,130.53,130.51,8.00306527]
[1744865257066,0.03,130.53,130.51,15.66523069]
[1744865258696,0.03,130.53,130.52,15.66472631]
[1744865259363,0.03,130.58,130.55,26.0]
[1744865259699,0.03,130.58,130.56,8.00306527]
[1744865263392,0.03,130.58,130.55,41.66281355]
[1744865266009,0.03,130.58,130.55,34.00306527]
[1744865267995,0.03,130.58,130.55,41.66290987]
[1744865268186,0.03,130.58,130.56,8.00306527]
[1744865268898,0.03,130.58,130.57,8.00306527]
[1744865269096,0.03,130.58,130.56,8.00306527]
[1744865270599,0.03,130.58,130.56,15.66229011]
[1744865271908,0.03,130.58,130.57,8.00306527]
[1744865272722,0.03,130.58,130.57,15.66179238]
[1744865273716,0.03,130.58,130.56,15.66221371]
[1744865273883,0.03,130.58,130.53,0.28432314]
[1744865274087,0.03,130.58,130.56,8.00306527]
[1744865275890,0.03,130.58,130.56,15.6623636]
[1744865276093,0.03,130.58,130.56,8.00306527]
[1744865276323,0.03,130.58,130.56,15.66235646]
[1744865277327,0.03,130.58,130.57,8.00306527]
[1744865280337,0.03,130.58,130.56,15.66235646]
[1744865281635,0.03,130.58,130.56,8.00306527]
[1744865281935,8.00306527,130.57,130.52,1.5033]
[1744865282231,8.00306527,130.57,130.54,26.0]
[1744865283743,15.66185581,130.57,130.52,15.66452885]
[1744865284242,15.66185581,130.57,130.52,41.66452885]
[1744865284424,15.66185581,130.57,130.52,15.66452885]
[1744865284742,15.66185581,130.57,130.53,26.0]
[1744865286234,8.00306527,130.55,130.51,8.00306527]
[1744865286427,8.00306527,130.54,130.5,23.02259375]
[1744865286635,8.00306527,130.55,130.5,57.02565902]
[1744865288570,8.00306527,130.54,130.5,57.02565902]
[1744865288847,8.00306527,130.54,130.5,33.66259375]
[1744865289032,8.00306527,130.52,130.5,26.0]
[1744865289425,8.00306527,130.53,130.5,26.0]
[1744865290634,8.00306527,130.51,130.47,0.063]
[1744865290951,8.00306527,130.51,130.47,33.72757189]
[1744865291854,8.00306527,130.51,130.47,41.73063716]
[1744865292661,8.00306527,130.51,130.47,33.72757189]
[1744865293233,8.00306527,130.51,130.47,26.063]
[1744865294253,8.00306527,130.51,130.47,33.72750978]
[1744865294565,90.46127968,130.53,130.47,41.73057505]
[1744865294770,8.00306527,130.51,130.47,41.73057505]
[1744865295266,82.8,130.52,130.48,8.00306527]
[1744865297155,82.8,130.52,130.48,15.6668746]
[1744865297361,90.45880576,130.57,130.51,34.00306527]
[1744865297537,8.00306527,130.55,130.51,26.0]
[1744865299360,8.00306527,130.55,130.51,33.66201657]
[1744865300643,90.80306527,130.56,130.51,41.66508184]
[1744865301246,90.80306527,130.56,130.51,33.66201657]
[1744865301464,90.80306527,130.56,130.51,41.66508184]
[1744865303843,82.8,130.56,130.51,41.66508184]
[1744865304038,90.80306527,130.56,130.51,41.66508184]
[1744865305167,90.80306527,130.56,130.48,9.54586527]
[1744865305168,8.00306527,130.54,130.48,9.54586527]
[1744865305466,8.00306527,130.54,130.49,41.66630286]
[1744865307765,8.00306527,130.54,130.49,33.66323759]
[1744865308269,8.00306527,130.54,130.49,41.66630286]
[1744865310272,15.66370202,130.54,130.49,33.66323759]
[1744865311368,15.66370202,130.54,130.49,41.66630286]
[1744865313258,117.11285586,130.55,130.49,41.66630286]
[1744865314269,117.11285586,130.55,130.49,33.66323759]
[1744865314473,82.8,130.55,130.52,8.00306527]
[1744865315775,15.42,130.56,130.53,8.00306527]
[1744865316676,15.42,130.56,130.53,15.6637162]
[1744865317059,15.42,130.56,130.54,8.00306527]
[1744865317259,82.8,130.57,130.54,8.00306527]
[1744865318085,82.8,130.57,130.54,15.66315398]
[1744865318689,0.03,130.58,130.56,8.00306527]
[1744865318890,0.03,130.58,130.54,7.66008871]
[1744865318891,0.03,130.58,130.57,8.00306527]
[1744865320178,0.03,130.58,130.57,15.66179238]
[1744865321454,8.03306527,130.58,130.54,7.66035969]
[1744865321654,8.03306527,130.58,130.53,17.1923691]
[1744865321954,90.83306527,130.58,130.53,43.1923691]
[1744865322560,90.83306527,130.58,130.53,35.53146527]
[1744865322968,90.83306527,130.58,130.53,43.19248534]
[1744865323491,90.48815214,130.58,130.53,43.19248534]
[1744865324280,90.48815214,130.58,130.54,8.00306527]
[1744865325184,82.83,130.58,130.54,8.00306527]
[1744865325481,82.83,130.58,130.55,8.00306527]
[1744865326585,82.83,130.58,130.56,8.00306527]
[1744865327380,82.83,130.58,130.56,15.66206095]
[1744865327583,82.83,130.58,130.57,8.00306527]
[1744865330378,0.03,130.58,130.57,8.00306527]
[1744865330776,0.03,130.58,130.57,15.66179238]
[1744865338172,0.03,130.58,130.57,21.81308054]
[1744865339077,0.03,130.58,130.57,15.66179238]
[1744865339394,0.03,130.58,130.57,15.94611552]
[1744865340296,0.03,130.58,130.57,15.66179238]
[1744865342200,1e-08,130.58,130.57,36.36612595]
[1744865342374,0.03,130.59,130.58,0.14216157]
[1744865342574,0.03,130.59,130.58,23.52522684]
[1744865343571,0.03,130.59,130.58,31.18336744]
[1744865345197,1e-08,130.59,130.58,50.11733944]
[1744865345699,1e-08,130.59,130.58,31.46769058]
[1744865347075,0.03,130.62,130.61,34.00306527]
[1744865348403,0.03,130.62,130.61,41.65944686]
[1744865348704,0.03,130.62,130.61,41.94377]
[1744865350710,0.03,130.62,130.61,41.65944686]
[1744865352002,2.7583969,130.63,130.62,2.06288471]
[1744865352194,0.03,130.64,130.62,9.92378841]
[1744865352405,0.03,130.64,130.63,49.66738841]
[1744865354230,0.03,130.64,130.63,31.32259777]
[1744865355602,6.6868,130.72,130.66,26.0]
[1744865355813,6.6868,130.72,130.69,8.00306527]
[1744865357316,8.00306527,130.71,130.66,34.00306527]
[1744865357521,105.13990169,130.72,130.67,8.00306527]
[1744865358410,105.13990169,130.72,130.68,8.00306527]
[1744865358630,97.13683642,130.72,130.68,8.00306527]
[1744865358838,105.13990169,130.72,130.68,8.00306527]
[1744865359040,89.4868,130.72,130.68,8.00306527]
[1744865360237,8.00306527,130.71,130.66,26.0]
[1744865360445,90.80306527,130.7,130.65,34.00306527]
[1744865360628,90.80306527,130.7,130.65,8.00306527]
[1744865360922,90.80306527,130.7,130.67,26.0]
[1744865361518,98.4544677,130.7,130.67,26.0]
[1744865363142,8.00306527,130.68,130.64,8.00306527]
[1744865365145,15.65546995,130.68,130.63,49.38306527]
[1744865365354,8.00306527,130.67,130.63,34.00306527]
[1744865365647,97.45026527,130.67,130.62,8.00306527]
[1744865366049,97.45026527,130.67,130.61,33.65627157]
[1744865366250,15.65651697,130.66,130.61,26.0]
[1744865366427,8.00306527,130.63,130.59,8.00306527]
[1744865366622,7.6534517,130.66,130.6,26.0]
[1744865366623,8.00306527,130.64,130.6,26.0]
[1744865366822,8.00306527,130.64,130.61,26.0]
[1744865367323,82.8,130.65,130.61,26.0]
[1744865367521,8.00306527,130.64,130.61,26.0]
[1744865369552,15.65772085,130.64,130.61,26.0]
[1744865369931,15.65772085,130.64,130.59,8.00306527]
[1744865370135,7.65465558,130.64,130.59,15.66060917]
[1744865370335,15.65772085,130.64,130.59,15.66060917]
[1744865370828,15.65772085,130.64,130.59,13.16060917]
[1744865373051,7.65465558,130.64,130.6,8.00306527]
[1744865373257,82.8,130.65,130.63,8.00306527]
[1744865373562,6.6472,130.67,130.63,8.00306527]
[1744865374138,6.6472,130.67,130.64,8.00306527]
[1744865375063,6.6472,130.67,130.63,8.00306527]
[1744865375453,6.6472,130.67,130.63,15.65798356]
[1744865375951,6.6472,130.67,130.63,7.65491829]
[1744865376139,6.6472,130.67,130.63,15.65798356]
[1744865376553,17.23338522,130.68,130.63,15.65798356]
[1744865376940,1.578,130.68,130.64,8.00306527]
[1744865378541,17.23345018,130.68,130.63,15.65798356]
[1744865378854,17.23345018,130.68,130.63,15.15798356]
[1744865379154,8.00306527,130.67,130.62,15.65865767]
[1744865380257,9.23038491,130.68,130.63,8.00306527]
[1744865380563,82.8,130.69,130.65,8.00306527]
[1744865381734,82.8,130.69,130.65,15.6569538]
[1744865382261,82.8,130.69,130.66,8.00306527]
[1744865382971,82.8,130.69,130.66,15.65630442]
[1744865383951,15.3,130.7,130.67,8.00306527]
[1744865384147,98.45361705,130.71,130.66,15.65630442]
[1744865384352,98.45361705,130.71,130.67,8.00306527]
[1744865384759,98.45361705,130.71,130.66,15.65630442]
[1744865385081,8.00306527,130.7,130.66,8.00306527]
[1744865385264,8.00306527,130.7,130.65,7.65384793]
[1744865385461,8.00306527,130.7,130.65,15.6569132]
[1744865386278,8.00306527,130.69,130.65,26.0]
[1744865386876,15.65433652,130.7,130.65,34.00306527]
[1744865387780,15.65433652,130.7,130.65,41.65685998]
[1744865388779,15.65433652,130.7,130.65,33.65379471]